bitfinex/quotes_ETHUSD_20220111
["timestamp","ask_amount","ask_price","bid_price","bid_amount"]
[1641898365335,0.3,3102.4,3102.1,0.00454738]
[1641898365833,0.3,3102.5,3102.1,0.00454738]
[1641898366286,0.463,3102.5,3102.1,0.00454738]
[1641898366488,1.569,3102.5,3102.1,0.00454738]
[1641898366687,0.81881616,3102.3,3102.1,0.00454738]
[1641898366889,4.49357,3102.2,3102.1,0.00454738]
[1641898367088,5.79357,3102.2,3102.1,0.00454738]
[1641898368094,1.84357,3102.2,3102.1,0.00454738]
[1641898368890,4.5828678,3102.2,3102.1,0.00454738]
[1641898370034,4.5828678,3102.2,3102.1,0.01325613]
[1641898370638,12.24885863,3102.2,3102.1,0.01325613]
[1641898371436,8.09885863,3102.2,3102.1,0.01325613]
[1641898372637,10.47646821,3102.2,3102.1,0.01325613]
[1641898372935,10.47646821,3102.2,3101.8,3.18325613]
[1641898373142,1.0,3102.1,3101.8,3.18325613]
[1641898373336,4.46427297,3102.0,3101.9,0.00113685]
[1641898373580,5.76427297,3102.0,3101.9,0.00113685]
[1641898374582,8.50357077,3102.0,3101.9,0.00113685]
[1641898374786,5.3889648,3102.0,3101.9,0.00113685]
[1641898374981,6.97478919,3102.0,3101.9,0.00113685]
[1641898375583,6.89420919,3102.0,3101.9,0.00113685]
[1641898375789,5.3083848,3102.0,3101.9,0.00113685]
[1641898376786,4.5022978,3102.0,3101.9,0.00113685]
[1641898376987,2.7392978,3102.0,3101.9,0.00113685]
[1641898377932,4.32512219,3102.3,3101.9,0.00113685]
[1641898378532,4.62512219,3102.3,3101.9,0.00113685]
[1641898378731,1.58582439,3102.3,3101.9,0.00113685]
[1641898379532,1.58582439,3102.4,3101.9,0.00113685]
[1641898379935,0.00113685,3102.3,3101.9,0.00113685]
[1641898381379,2.74043465,3102.3,3101.9,0.00113685]
[1641898381580,1.0,3102.2,3101.9,0.00113685]
[1641898382080,1.60113685,3102.3,3101.9,0.00113685]
[1641898382579,2.7392978,3102.1,3101.9,0.00113685]
[1641898382980,3.3392978,3102.1,3101.9,0.00113685]
[1641898383186,0.6,3102.1,3101.9,0.00113685]
[1641898383381,1.0,3102.0,3101.9,0.00113685]
[1641898383587,3.3392978,3102.0,3101.9,0.00113685]
[1641898383980,2.7392978,3102.0,3101.9,0.00113685]
[1641898385437,2.7392978,3102.2,3101.9,0.00113685]
[1641898385637,3.0392978,3102.2,3101.9,0.00113685]
[1641898386039,2.7392978,3102.0,3101.9,0.00113685]
[1641898387243,0.60113685,3102.3,3101.9,0.00113685]
[1641898387244,2.7392978,3102.1,3101.9,0.00113685]
[1641898387641,2.7392978,3102.2,3101.9,0.00113685]
[1641898387841,2.7392978,3102.0,3101.9,0.00113685]
[1641898388682,0.00113685,3102.3,3101.9,0.00113685]
[1641898389081,1.00113685,3102.3,3101.9,0.00113685]
[1641898389282,2.7392978,3102.0,3101.9,0.00113685]
[1641898389680,3.0392978,3102.0,3101.9,0.00113685]
[1641898389880,0.3,3102.0,3101.9,0.00113685]
[1641898390280,3.0392978,3102.1,3101.9,0.00113685]
[1641898390480,1.0,3102.0,3101.9,0.00113685]
[1641898390681,3.0392978,3102.1,3101.9,0.00113685]
[1641898391082,2.7392978,3102.0,3101.9,0.00113685]
[1641898391290,2.7392978,3102.0,3101.9,2.40113685]
[1641898391488,2.7392978,3102.0,3101.9,0.00113685]
[1641898391883,3.0392978,3102.0,3101.9,0.00113685]
[1641898392934,2.7392978,3102.0,3101.9,0.00113685]
[1641898400535,0.00113685,3102.3,3101.9,0.00113685]
[1641898401135,0.00113685,3102.3,3102.0,0.8057]
[1641898405184,0.00113685,3102.3,3101.8,3.18325613]
[1641898408736,1.00113685,3102.3,3101.8,3.18325613]
[1641898408937,1.30113685,3102.3,3101.8,3.18325613]
[1641898409537,1.10706435,3102.3,3101.8,3.18325613]
[1641898409942,2.7392978,3102.2,3101.8,3.18325613]
[1641898414393,4.32512219,3102.6,3101.8,3.18325613]
[1641898414593,1.0,3102.5,3101.8,3.18325613]
[1641898414851,2.7392978,3102.1,3101.8,3.18325613]
[1641898415740,2.7392978,3102.4,3101.8,3.18325613]
[1641898416138,1.00113684,3102.3,3101.8,3.18325613]
[1641898416338,1.30113684,3102.3,3101.8,3.18325613]
[1641898416638,0.00113684,3102.3,3101.8,3.18325613]
[1641898416839,2.7392978,3102.2,3101.8,3.18325613]
[1641898417837,0.00113684,3102.3,3101.8,3.18325613]
[1641898418442,2.74043464,3102.3,3101.8,3.18325613]
[1641898418885,0.00113684,3102.3,3101.8,3.18325613]
[1641898419484,2.7392978,3102.2,3101.8,3.18325613]
[1641898419882,2.74043464,3102.3,3101.8,3.18325613]
[1641898420485,2.7392978,3102.1,3101.8,3.18325613]
[1641898421283,3.0392978,3102.1,3101.8,3.18325613]
[1641898421489,0.3,3102.0,3101.8,3.18325613]
[1641898421886,2.7392978,3101.9,3101.8,3.18325613]
[1641898422351,2.7392978,3101.9,3101.8,3.1849614]
[1641898424439,0.00113684,3102.3,3101.8,3.1849614]
[1641898424641,1.00113684,3102.3,3101.8,3.1849614]
[1641898424840,1.00113684,3102.3,3101.9,0.00113685]
[1641898425039,1.30113684,3102.3,3101.9,0.00113685]
[1641898425640,2.7392978,3102.2,3101.9,0.00113685]
[1641898428197,3.0392978,3102.2,3101.9,0.00113685]
[1641898428997,2.7392978,3102.1,3101.9,0.00113685]
[1641898429973,0.00113684,3102.3,3101.9,0.00113685]
[1641898430160,1.00113684,3102.3,3101.9,0.00113685]
[1641898430360,0.00113684,3102.3,3101.9,0.00113685]
[1641898431159,2.68256712,3102.4,3101.9,1.61252685]
[1641898431362,1.66640439,3102.6,3101.9,1.61366369]
[1641898431561,0.08058,3102.6,3102.4,0.76017891]
[1641898431761,0.00113685,3102.5,3102.4,2.07293376]
[1641898444191,0.00113685,3102.5,3102.4,2.87844376]
[1641898445344,0.00113685,3102.5,3102.4,2.07293376]
[1641898445546,0.00113685,3102.5,3102.4,1.31275485]
[1641898445744,0.00113685,3102.5,3102.2,0.03894573]
[1641898446946,2.9373596,3102.5,3102.2,0.03894573]
[1641898447146,1.0,3102.4,3102.2,0.03894573]
[1641898447847,3.2373596,3102.5,3102.2,0.03894573]
[1641898451418,2.73880491,3102.4,3102.2,0.03894573]
[1641898452215,1.0,3102.3,3102.2,0.03894573]
[1641898452449,1.3,3102.3,3102.2,0.03894573]
[1641898452844,2.73880491,3102.4,3102.2,0.03894573]
[1641898453047,3.03880491,3102.4,3102.2,0.03894573]
[1641898453251,2.73880491,3102.3,3102.2,0.03894573]
[1641898455046,4.31155458,3102.3,3102.2,0.03894573]
[1641898455249,4.31155458,3102.3,3102.0,0.00170527]
[1641898455250,3.28225458,3102.3,3102.0,0.00170527]
[1641898455448,1.38057,3102.2,3102.0,0.00170527]
[1641898455647,1.38057,3102.2,3101.8,3.18325613]
[1641898455648,3.063,3102.1,3101.9,0.00227369]
[1641898455947,2.53058,3102.0,3101.9,0.00227369]
[1641898456200,0.84358,3102.0,3101.9,0.00227369]
[1641898456399,0.84358,3102.0,3101.8,2.43902982]
[1641898456400,1.84358,3102.0,3101.8,2.43902982]
[1641898456602,1.6496759,3102.0,3100.8,1.34645354]
[1641898456798,1.6496759,3102.0,3100.5,8.62467]
[1641898456998,1.6496759,3102.0,3100.9,0.00568423]
[1641898457599,1.6078854,3101.8,3100.9,0.00568423]
[1641898457800,3.16723698,3101.7,3101.0,1.15067147]
[1641898458205,3.16723698,3101.7,3101.1,0.00454739]
[1641898458401,1.0,3101.6,3101.1,0.00454739]
[1641898458601,0.3,3101.6,3101.1,0.00454739]
[1641898458803,3.98638195,3101.7,3101.1,0.00454739]
[1641898459207,2.73880491,3101.5,3101.1,0.00454739]
[1641898459401,3.03880491,3101.5,3101.1,0.00454739]
[1641898459602,1.0,3101.4,3101.1,0.00454739]
[1641898460541,2.73880491,3101.3,3101.1,0.00454739]
[1641898460938,1.0,3101.2,3101.1,0.00454739]
[1641898461541,1.0,3101.3,3101.1,0.00454739]
[1641898462040,2.73880491,3101.2,3101.1,0.00454739]
[1641898462541,3.73880491,3101.2,3101.1,0.00454739]
[1641898462745,2.73880491,3101.2,3101.1,0.00454739]
[1641898462943,3.73880491,3101.2,3101.1,0.00454739]
[1641898463786,2.73880491,3101.2,3101.1,0.00454739]
[1641898464189,3.73880491,3101.2,3101.1,0.00454739]
[1641898464490,4.03880491,3101.2,3101.1,0.00454739]
[1641898464686,1.3,3101.2,3101.1,0.00454739]
[1641898465086,3.03880491,3101.2,3101.1,0.00454739]
[1641898465285,2.73880491,3101.2,3101.1,0.00454739]
[1641898465487,4.03880491,3101.2,3101.1,0.00454739]
[1641898465786,2.73880491,3101.2,3101.1,3.20454739]
[1641898466585,0.0806,3101.6,3101.1,3.20454739]
[1641898466586,2.73880491,3101.5,3101.1,3.20454739]
[1641898466990,3.03880491,3101.5,3101.2,0.00397896]
[1641898467448,3.03880491,3101.5,3101.2,0.80991896]
[1641898467643,2.73880491,3101.5,3101.2,0.80991896]
[1641898467844,2.73880491,3101.5,3101.3,0.00341054]
[1641898468344,2.73880491,3101.4,3101.3,0.00341054]
[1641898468948,2.73880491,3101.8,3101.3,0.00341054]
[1641898469146,1.0,3101.7,3101.3,0.00341054]
[1641898469556,1.3,3101.7,3101.3,0.00341054]
[1641898469751,1.1541,3101.7,3101.3,0.00341054]
[1641898470949,2.73880491,3101.6,3101.3,0.00341054]
[1641898471594,2.81940491,3101.6,3101.3,0.00341054]
[1641898471791,2.73880491,3101.5,3101.2,0.00397896]
[1641898471994,4.03880491,3101.5,3101.2,0.00397896]
[1641898472196,1.0,3101.4,3101.2,0.00397896]
[1641898472393,3.03880491,3101.5,3101.2,0.00397896]
[1641898472791,2.73880491,3101.5,3101.2,0.00397896]
[1641898472994,2.73880491,3101.3,3101.2,0.00397896]
[1641898473393,2.73880491,3101.3,3101.2,4.75397896]
[1641898473595,2.73880491,3101.9,3101.2,4.75397896]
[1641898473793,2.73880491,3101.9,3101.5,0.83527826]
[1641898474194,2.73880491,3101.9,3101.6,0.00170527]
[1641898474851,2.81940491,3102.2,3101.6,0.00170527]
[1641898475047,1.0,3102.1,3101.6,0.00170527]
[1641898475247,1.0,3102.1,3101.1,3.2]
[1641898475248,5.34782716,3102.1,3101.4,0.00284212]
[1641898475445,5.34782716,3102.1,3101.2,0.00397896]
[1641898475446,0.08058,3102.0,3101.2,0.00397896]
[1641898475847,4.42727031,3102.0,3101.2,0.00397896]
[1641898476047,1.0,3101.9,3101.2,0.00397896]
[1641898476245,0.0806,3101.8,3101.2,0.00397896]
[1641898477246,2.73880491,3101.7,3101.2,0.00397896]
[1641898477646,1.0,3101.6,3101.2,0.00397896]
[1641898478601,2.73880491,3101.5,3101.2,0.00397896]
[1641898478992,1.0,3101.4,3101.2,0.00397896]
[1641898479998,2.73880491,3101.3,3101.2,0.00397896]
[1641898480395,4.03880491,3101.3,3101.2,0.00397896]
[1641898482842,3.03880491,3101.3,3101.2,0.00397896]
[1641898483242,4.03880491,3101.3,3101.2,0.00397896]
[1641898483443,1.3,3101.3,3101.2,0.00397896]
[1641898483642,0.3,3101.3,3101.2,0.00397896]
[1641898484045,0.3806,3101.6,3101.2,0.00397896]
[1641898484243,0.3806,3101.7,3101.2,0.00397896]
[1641898484444,0.0806,3101.7,3101.2,0.00397896]
[1641898487898,2.73881832,3101.6,3101.2,0.00397896]
[1641898488093,1.0,3101.5,3101.2,0.00397896]
[1641898488894,2.73881832,3101.4,3101.2,0.00397896]
[1641898489093,1.0,3101.3,3101.2,0.00397896]
[1641898490371,3.73881832,3101.3,3101.2,0.00397896]
[1641898493481,4.03881832,3101.3,3101.2,0.00397896]
[1641898493702,7.33368403,3101.3,3101.2,0.00397896]
[1641898493898,4.23361832,3101.3,3101.2,0.00397896]
[1641898494597,4.69661832,3101.3,3101.2,0.00397896]
[1641898494797,5.20284662,3101.3,3101.2,0.00397896]
[1641898495199,5.50284662,3101.3,3101.2,0.00397896]
[1641898495501,5.00804662,3101.3,3101.2,0.00397896]
[1641898495705,6.15293202,3101.3,3101.2,0.00397896]
[1641898496108,5.34670372,3101.3,3101.2,0.00397896]
[1641898496505,2.73881832,3101.3,3101.2,0.00397896]
[1641898497751,3.60881832,3101.3,3101.2,0.00397896]
[1641898497946,1.27,3101.3,3101.2,0.00397896]
[1641898498145,6.39628916,3101.3,3101.2,0.00397896]
[1641898498351,4.04628916,3101.3,3101.2,0.00397896]
[1641898498646,8.39299288,3101.3,3101.2,0.00397896]
[1641898499248,7.76814944,3101.3,3101.2,0.00397896]
[1641898499548,7.76026404,3101.3,3101.2,0.00397896]
[1641898500953,7.46026404,3101.3,3101.2,0.00397896]
[1641898501797,6.92107517,3101.3,3101.2,0.00397896]
[1641898501996,7.22107517,3101.3,3101.2,0.00397896]
[1641898502399,7.21978653,3101.3,3101.2,0.00397896]
[1641898502602,6.75678653,3101.3,3101.2,0.00397896]
[1641898503197,5.14378038,3101.3,3101.2,0.00397896]
[1641898503797,8.07194742,3101.3,3101.2,0.00397896]
[1641898504198,8.08152588,3101.3,3101.2,0.00397896]
[1641898504401,6.75678653,3101.3,3101.2,0.00397896]
[1641898504699,9.66897638,3101.3,3101.2,0.00397896]
[1641898505139,6.75678653,3101.3,3101.2,0.00397896]
[1641898505339,6.75678653,3101.3,3101.1,3.2]
[1641898505540,1.3,3101.2,3101.1,3.2]
[1641898505941,1.3,3101.2,3101.1,3.20454739]
[1641898506342,4.03881832,3101.2,3101.1,3.20454739]
[1641898507843,2.73881832,3101.2,3101.1,3.20454739]
[1641898509104,4.03881832,3101.2,3101.1,3.20454739]
[1641898509705,2.73881832,3101.2,3101.1,3.20454739]
[1641898510908,3.03881832,3101.2,3101.1,3.20454739]
[1641898511114,4.03881832,3101.2,3101.1,3.20454739]
[1641898511310,3.03881832,3101.2,3101.1,3.20454739]
[1641898513360,4.03881832,3101.2,3101.1,3.20454739]
[1641898513960,4.33881832,3101.2,3101.1,3.20454739]
[1641898514760,4.41941832,3101.2,3101.1,3.20454739]
[1641898514963,7.34007516,3101.2,3101.1,3.20454739]
[1641898515161,6.03242447,3101.2,3101.1,3.20454739]
[1641898515362,8.92893565,3101.2,3101.1,3.20454739]
[1641898515562,6.03242447,3101.2,3101.1,3.20454739]
[1641898515764,5.73242447,3101.2,3101.1,3.20454739]
[1641898516195,8.54361585,3101.2,3101.1,3.20454739]
[1641898516396,8.62421585,3101.2,3101.1,3.15454739]
[1641898516800,4.11941832,3101.2,3101.1,3.15454739]
[1641898517094,7.06008796,3101.2,3101.1,3.15454739]
[1641898517295,4.11941832,3101.2,3101.1,3.15454739]
[1641898518297,7.01686772,3101.2,3101.1,3.15454739]
[1641898518596,7.31686772,3101.2,3101.1,3.15454739]
[1641898519403,7.35331788,3101.2,3101.1,3.15454739]
[1641898520443,4.41941832,3101.2,3101.1,3.15454739]
[1641898520844,4.11941832,3101.2,3101.1,3.15454739]
[1641898521844,4.41941832,3101.2,3101.1,3.15454739]
[1641898522344,7.33846301,3101.2,3101.1,3.15454739]
[1641898522544,6.96941832,3101.2,3101.1,3.08016669]
[1641898522746,11.7948047,3101.2,3101.1,3.08016669]
[1641898522947,11.7948047,3101.2,3099.9,3.6942]
[1641898523150,11.7948047,3101.2,3099.8,3.8955]
[1641898523151,0.80657,3100.3,3099.8,3.8955]
[1641898523345,1.63147,3100.3,3100.0,0.00625266]
[1641898523604,1.93147,3100.3,3100.0,0.00625266]
[1641898523794,2.23147,3100.3,3099.8,0.0073895]
[1641898523995,1.4249,3100.3,3099.8,0.0073895]
[1641898524198,3.23148,3100.3,3099.8,0.0073895]
[1641898524397,1.6132059,3100.1,3099.8,0.0073895]
[1641898524606,2.23148,3100.3,3099.8,0.0073895]
[1641898524607,1.0,3100.2,3099.8,0.0073895]
[1641898524894,0.6,3100.1,3099.8,0.0073895]
[1641898525099,3.46498638,3100.0,3099.8,0.0073895]
[1641898525297,3.46498638,3100.0,3098.1,1.61321]
[1641898525298,27.48262638,3099.9,3098.5,4.072888]
[1641898525497,0.8068664,3099.0,3098.5,4.072888]
[1641898525699,0.8068664,3099.0,3097.1,0.4176702]
[1641898525700,0.01216289,3098.7,3097.1,0.4176702]
[1641898525894,0.01216289,3098.7,3097.4,0.01816197]
[1641898526204,0.01216289,3098.7,3096.0,1.01114311]
[1641898526205,0.80754,3096.9,3096.0,1.01114311]
[1641898526402,0.8076,3096.7,3096.0,0.96114311]
[1641898526594,18.75,3096.6,3096.0,0.66739577]
[1641898526794,0.81042842,3096.6,3096.0,0.41739577]
[1641898526994,0.60227369,3096.5,3096.0,1.50466699]
[1641898527199,0.30227369,3096.5,3096.0,1.50466699]
[1641898527453,3.05470527,3096.6,3096.1,5.2]
[1641898527652,3.05470527,3096.6,3096.0,1.08727122]
[1641898527653,0.463,3096.5,3096.0,1.08727122]
[1641898527852,0.463,3096.9,3096.1,0.69724337]
[1641898528053,0.0001,3096.9,3096.5,1.13466505]
[1641898528251,0.00341054,3097.0,3096.2,0.00113685]
[1641898528451,0.463,3096.9,3096.3,1.24886001]
[1641898528652,2.73881832,3096.4,3096.3,1.24886001]
[1641898528952,0.00227369,3096.8,3096.1,1.61422]
[1641898529152,0.00227369,3096.8,3096.1,0.90053357]
[1641898529353,0.00170527,3096.7,3096.2,0.00113685]
[1641898529653,0.00113685,3096.6,3096.2,0.00113685]
[1641898530059,3.00198638,3097.2,3096.5,1.54946419]
[1641898530252,1.08582581,3097.3,3096.5,1.54946419]
[1641898530451,0.00397896,3097.1,3096.5,1.54946419]
[1641898530651,0.00454739,3097.2,3096.5,1.54946419]
[1641898531102,0.00397896,3097.1,3096.5,1.54946419]
[1641898531595,0.00397896,3097.1,3097.0,1.21372385]
[1641898532997,0.00397896,3097.1,3097.0,2.05402385]
[1641898533198,0.00397896,3097.1,3097.0,2.51702385]
[1641898533398,0.61308511,3097.6,3097.1,7.1]
[1641898533598,0.61308511,3097.6,3097.3,0.83282453]
[1641898533799,2.37760958,3097.9,3097.3,0.83282453]
[1641898533800,0.0022737,3097.5,3097.4,7.563]
[1641898534098,2.37760958,3098.3,3097.5,8.60777662]
[1641898534298,2.37760958,3098.3,3097.8,0.80676]
[1641898534704,9.58e-06,3098.3,3097.9,7.563]
[1641898534952,9.58e-06,3098.5,3097.9,7.563]
[1641898535148,9.58e-06,3098.5,3098.0,1.23085432]
[1641898535346,0.00569381,3098.5,3098.0,1.69385432]
[1641898535747,0.00568423,3098.5,3098.0,1.69385432]
[1641898536146,0.00568423,3098.5,3098.4,3.96046385]
[1641898537455,0.00568423,3098.5,3098.2,0.80667]
[1641898537650,0.01624908,3098.4,3098.0,5.43185432]
[1641898537850,0.00511581,3098.4,3098.0,5.43185432]
[1641898538050,0.00454739,3098.3,3098.0,5.43185432]
[1641898538451,0.00397896,3098.2,3098.0,5.43185432]
[1641898538694,0.00397896,3098.2,3098.1,3.86161038]
[1641898538893,3.10318501,3099.0,3098.8,1.31265441]
[1641898539094,0.31281621,3099.0,3098.1,0.81161038]
[1641898539297,0.00795793,3098.9,3098.1,0.81161038]
[1641898539698,0.0073895,3098.8,3098.1,0.81161038]
[1641898540099,0.00682108,3098.7,3098.5,1.29868843]
[1641898540496,0.00625266,3098.6,3098.5,1.29868843]
[1641898541697,0.00625266,3098.6,3098.5,4.64868843]
[1641898542199,3.18477935,3099.2,3098.6,7.1]
[1641898542458,3.18477935,3099.2,3098.6,7.8862]
[1641898542657,0.00284211,3099.1,3098.6,7.8862]
[1641898542861,0.00284211,3099.1,3098.8,2.41918]
[1641898543053,0.00227369,3099.0,3098.9,1.595914]
[1641898543656,0.00227369,3099.0,3098.9,8.395914]
[1641898544258,0.00227369,3099.0,3098.9,9.202284]
[1641898544460,0.00227369,3099.0,3098.9,2.402284]
[1641898544658,0.00227369,3099.0,3098.9,1.595914]
[1641898545263,1.60276743,3099.7,3099.0,7.1]
[1641898545461,1.60276743,3099.7,3099.1,0.463]
[1641898545659,0.00341054,3099.6,3099.1,0.463]
[1641898546102,0.00284212,3099.5,3099.1,0.463]
[1641898546299,0.00284212,3099.5,3099.2,0.90596853]
[1641898546497,0.00227369,3099.4,3099.2,2.51861853]
[1641898546697,0.00227369,3099.4,3099.1,0.463]
[1641898546897,1.60276743,3099.8,3099.1,0.463]
[1641898546898,0.00170527,3099.3,3099.1,0.463]
[1641898547297,4.69313623,3100.0,3099.1,0.463]
[1641898547298,0.00113685,3099.2,3099.1,0.463]
[1641898549848,2.74181693,3099.2,3099.1,0.463]
[1641898551846,3.04181693,3099.2,3099.1,0.463]
[1641898564696,3.04181693,3099.2,3098.2,1.61323]
[1641898564697,6.54239456,3099.2,3098.2,1.61323]
[1641898564954,1.01502296,3099.1,3098.0,3.6265]
[1641898565254,1.10674,3098.8,3098.5,0.00284212]
[1641898565456,1.40674,3098.8,3098.5,0.00284212]
[1641898565854,1.40674,3098.8,3098.1,0.00511581]
[1641898566059,0.6,3098.8,3098.0,0.00568423]
[1641898566255,0.8068,3098.5,3098.0,0.00568423]
[1641898566657,0.3,3098.4,3097.9,0.00625266]
[1641898567057,4.35458008,3098.4,3097.9,0.00625266]
[1641898567255,4.65458008,3098.4,3097.9,0.00625266]
[1641898567957,3.54763008,3098.3,3098.0,1.53234122]
[1641898568256,0.3,3098.2,3098.1,0.00511581]
[1641898568698,3.04068008,3098.2,3098.1,0.00511581]
[1641898568894,3.04068008,3098.2,3097.8,5.59645915]
[1641898568895,3.04068008,3098.2,3097.9,0.00625266]
[1641898569994,2.74068008,3098.1,3097.9,0.00625266]
[1641898571102,3.04068008,3098.1,3097.9,0.00625266]
[1641898571600,2.74068008,3098.1,3097.9,0.00625266]
[1641898571797,2.74068008,3098.0,3097.9,0.00625266]
[1641898572450,4.04068008,3098.0,3097.9,0.00625266]
[1641898572646,3.04068008,3098.0,3097.9,0.00625266]
[1641898572844,4.04068008,3098.0,3097.9,0.00625266]
[1641898573044,8.04391594,3098.0,3097.9,0.00625266]
[1641898573249,8.04391594,3098.0,3097.8,5.58773152]
[1641898573450,0.3,3097.9,3097.8,5.58773152]
[1641898574047,0.3,3097.9,3097.8,1.19969965]
[1641898574648,0.3,3097.9,3097.3,0.86956935]
[1641898574851,0.807,3097.7,3097.3,0.86956935]
[1641898575049,0.3,3097.6,3097.4,0.00284212]
[1641898575250,3.47420483,3097.6,3097.4,0.00284212]
[1641898575649,3.47420483,3097.6,3097.3,0.00341054]
[1641898575849,3.47420483,3097.6,3097.1,0.807]
[1641898576101,3.47420483,3097.6,3097.1,0.81154739]
[1641898576293,3.47420483,3097.6,3097.2,0.00397896]
[1641898576498,2.38082131,3097.4,3097.2,0.00397896]
[1641898576794,2.68082131,3097.4,3097.2,0.00397896]
[1641898577196,1.58792112,3097.3,3097.2,0.00397896]
[1641898577393,1.88792112,3097.3,3097.2,0.00397896]
[1641898577998,0.3,3097.3,3097.2,0.00397896]
[1641898578196,0.3,3097.3,3097.0,0.80701]
[1641898578395,5.42150139,3097.4,3097.0,0.81212581]
[1641898578598,5.42150139,3097.4,3097.1,0.00454739]
[1641898578895,5.42150139,3097.4,3097.2,1.52792404]
[1641898578896,0.3,3097.4,3097.2,1.52792404]
[1641898579100,3.2,3097.4,3097.2,1.52792404]
[1641898579295,3.5,3097.4,3097.3,2.60341054]
[1641898580155,3.2,3097.4,3097.3,2.60341054]
[1641898580759,3.5,3097.4,3097.3,2.60341054]
[1641898581160,3.2,3097.4,3097.3,7.10341054]
[1641898581361,0.8876144,3098.5,3097.3,7.10341054]
[1641898581362,5.77961046,3098.6,3097.5,0.01200278]
[1641898581561,5.77961046,3098.6,3098.3,0.77301113]
[1641898581562,5.69890046,3098.6,3098.3,0.77301113]
[1641898581969,4.11362085,3098.6,3098.3,0.77301113]
[1641898582164,4.11362085,3098.6,3097.9,1.6134]
[1641898582362,4.92040085,3098.6,3097.9,1.6134]
[1641898582764,1.3,3098.5,3097.6,1.61526527]
[1641898582965,0.3,3098.5,3097.6,1.61526527]
[1641898583163,1.60397897,3098.6,3097.8,0.6661789]
[1641898583364,0.60397897,3098.6,3097.8,0.6661789]
[1641898583598,0.00341054,3098.5,3097.8,0.6661789]
[1641898583793,2.74200789,3098.4,3097.9,1.26868563]
[1641898583994,0.3,3098.2,3097.9,1.26868563]
[1641898584398,0.00113685,3098.1,3097.9,1.26868563]
[1641898585394,2.74314474,3098.1,3097.9,1.26868563]
[1641898588547,2.74314474,3098.1,3097.8,0.6661789]
[1641898588747,3.85006474,3098.1,3097.7,0.00113684]
[1641898589146,3.85006474,3098.1,3097.6,0.00170527]
[1641898589348,3.85006474,3098.1,3097.2,0.00397896]
[1641898589650,3.04314474,3098.1,3097.2,1.46628174]
[1641898589948,2.74314474,3098.1,3097.3,0.86238367]
[1641898590148,2.74200789,3098.0,3097.3,0.86238367]
[1641898590348,0.3,3097.9,3097.3,0.86238367]
[1641898590547,1.10695,3097.9,3097.3,1.66931367]
[1641898591397,2.74200789,3097.8,3097.3,1.66931367]
[1641898591795,2.74200789,3097.8,3097.3,0.86238367]
[1641898591998,2.74200789,3097.8,3097.3,0.00341054]
[1641898592210,0.80702,3097.7,3097.3,0.00341054]
[1641898592405,3.18356377,3097.6,3097.3,0.00341054]
[1641898592598,0.3,3097.6,3097.0,0.00511581]
[1641898592803,3.04200789,3097.6,3096.8,0.00625266]
[1641898593201,0.80717,3097.4,3096.7,2.2906245]
[1641898593400,0.78669752,3097.4,3096.8,0.00625266]
[1641898593600,0.3,3097.3,3096.8,0.00625266]
[1641898594305,0.3,3097.4,3096.8,0.00625266]
[1641898594948,0.8071,3097.1,3096.8,0.00625266]
[1641898595350,1.1071,3097.1,3096.8,0.00625266]
[1641898596451,1.4071,3097.1,3096.8,0.00625266]
[1641898596650,1.4071,3097.1,3096.7,0.00682108]
[1641898596651,1.1071,3097.1,3096.7,0.00682108]
[1641898596853,0.80722,3096.9,3096.5,0.00795793]
[1641898597256,0.3,3096.8,3096.5,0.00795793]
[1641898597460,0.3,3096.8,3096.2,2.44588411]
[1641898597652,0.3,3096.8,3096.3,0.00909477]
[1641898598152,1.13115,3096.6,3096.3,0.00909477]
[1641898598352,0.3,3096.5,3096.3,0.00909477]
[1641898598802,1.3197,3096.5,3096.3,0.00909477]
[1641898599001,1.5245,3096.5,3096.2,0.0096632]
[1641898599806,1.3114,3096.5,3096.2,0.0096632]
[1641898600005,1.1066,3096.5,3096.2,0.0096632]
[1641898601004,1.4066,3096.5,3096.2,0.0096632]
[1641898601310,1.4066,3096.5,3096.3,1.0994157]
[1641898601311,1.1066,3096.5,3096.3,1.0994157]
[1641898601503,0.3,3096.8,3096.3,1.0994157]
[1641898601703,0.3,3096.8,3096.4,0.00852635]
[1641898602103,1.91461,3096.8,3096.4,0.00852635]
[1641898602367,0.08072,3096.7,3096.4,0.00852635]
[1641898602563,1.614611,3096.7,3096.2,0.0096632]
[1641898602764,0.3,3096.6,3096.5,0.00795793]
[1641898602964,0.6,3096.6,3096.2,0.0096632]
[1641898603166,1.61486,3096.5,3096.2,0.0096632]
[1641898603364,0.3,3096.4,3096.2,0.0096632]
[1641898605865,1.8002473,3096.4,3096.1,0.007]
[1641898606111,2.1002,3096.4,3096.1,0.007]
[1641898606497,0.3,3096.3,3096.1,0.007]
[1641898606902,0.3,3096.3,3095.9,0.0161503]
[1641898606903,3.65,3096.3,3095.9,0.0161503]
[1641898607101,1.0,3096.2,3095.9,0.0161503]
[1641898607299,1.0,3096.2,3096.0,0.00113684]
[1641898607503,0.38074,3096.3,3095.9,0.0161503]
[1641898607504,1.38074,3096.3,3095.9,0.0161503]
[1641898607701,1.38074,3096.3,3095.2,0.007]
[1641898607702,0.79075789,3095.8,3095.2,0.007]
[1641898607902,0.79075789,3095.8,3093.8,1.0]
[1641898607903,0.01249566,3095.3,3093.8,1.0]
[1641898608100,0.01249566,3095.3,3093.7,0.05005]
[1641898608101,0.08078,3095.2,3093.7,0.05005]
[1641898608300,0.08078,3095.2,3094.0,0.3413477]
[1641898608501,0.4698,3095.4,3094.0,0.3413477]
[1641898608502,0.01242672,3094.7,3094.0,0.3413477]
[1641898608702,0.686,3094.7,3094.0,3.47643944]
[1641898608900,0.686,3094.7,3094.1,3.13509174]
[1641898609101,0.986,3094.7,3094.2,2.14433329]
[1641898609301,0.986,3094.7,3094.2,2.15456492]
[1641898609502,0.49978138,3094.7,3094.2,2.15456492]
[1641898609703,0.3,3094.7,3094.2,2.15456492]
[1641898609964,0.80772,3095.0,3094.2,0.01023163]
[1641898610168,0.3,3094.9,3094.2,0.01023163]
[1641898610364,0.3,3094.9,3094.1,0.01080005]
[1641898610563,3.43509174,3095.1,3094.1,0.01080005]
[1641898610765,0.80777,3094.8,3094.1,0.01080005]
[1641898611066,0.80777,3094.8,3094.1,1.40765101]
[1641898611067,1.08078,3094.8,3094.1,1.40765101]
[1641898611266,0.38078,3094.8,3094.1,1.40765101]
[1641898611465,0.6,3094.8,3094.1,1.40765101]
[1641898611668,0.3,3094.9,3094.1,1.40765101]
[1641898611868,4.89809174,3095.0,3094.7,0.92720493]
[1641898611869,0.3,3095.0,3094.7,0.92720493]
[1641898612068,0.21895997,3095.6,3094.7,0.92720493]